Cogmind - Beta 10.2 @@@ ROGUE MODE // 2020.12.02 @ 17:20:25 Player: kerapace Result: Destroyed by as-87638 with Assembled Rifle Performance ------------- Evolutions (0) 0 Regions Visited (2) 400 Robots Destroyed (15) 75 Value Destroyed (181) 181 Prototype IDs (0) 0 Alien Tech Used (0) 0 Bonus (0) 0 TOTAL SCORE: 656 Bonus ------- None Cogmind --------- Core Integrity 0/250 Matter 237/300 Energy 104/125 System Corruption 0% Temperature Cool (289) Movement Treading (180) Ox1 Location -10/Mines Parts ------- > --- POWER (1) -------- Light Ion Engine > --- PROPULSION (2) --- Light Treads Light Treads > --- UTILITY (2) ------ High-capacity Storage Unit High-capacity Storage Unit > --- WEAPON (2) ------- Small Laser Beam Rifle > --- INVENTORY (20) --- Improved Targeting Computer Light Armor Plating Medium Laser Beam Rifle Light Assault Rifle Peak State ------------ > --- POWER ------------ Ion Engine > --- PROPULSION ------- Light Treads Light Treads > --- UTILITY ---------- High-capacity Storage Unit High-capacity Storage Unit > --- WEAPON ----------- Heavy EM Pulse Gun Heavy EM Pulse Gun > --- INVENTORY -------- Light Ion Engine Light Treads Light Treads Improved Targeting Computer Light Armor Plating Heavy EM Pulse Gun Heavy EM Pulse Gun Medium Laser Medium Laser Small Laser Beam Rifle Beam Rifle Beam Rifle Light Assault Rifle [Rating: 11] Favorites ----------- Power Ion Engine Engine Ion Engine Propulsion Light Treads Treads Light Treads Wheel Wheel Utility High-capacity Storage Unit Storage High-capacity Storage Unit Processor Improved Targeting Computer Weapon Heavy EM Pulse Gun Energy Gun Heavy EM Pulse Gun Ballistic Gun Light Assault Rifle Build | -11 -10 -10 ------- Run | Scr Mat Min Slots Evolved . | . . . Power . | . . . Propulsion . | . . . Utility . | . . . Weapon . | . . . Parts Attached 25 | 7 8 10 Power 4 | 2 1 1 Engine 4 | 2 1 1 Core . | . . . Reactor . | . . . Propulsion 5 | 2 1 2 Treads 4 | 1 1 2 Leg . | . . . Wheel 1 | 1 . . Hover . | . . . Flight . | . . . Utility 5 | 1 4 . Device . | . . . Storage 4 | 1 3 . Processor 1 | . 1 . Hackware . | . . . Protection . | . . . Artifact . | . . . Weapon 11 | 2 2 7 Energy Gun 10 | 1 2 7 Energy Cannon . | . . . Ballistic Gun 1 | 1 . . Ballistic Cannon . | . . . Launcher . | . . . Special Weapon . | . . . Impact Weapon . | . . . Slashing Weapon . | . . . Piercing Weapon . | . . . Special Melee Weapon . | . . . Unidentified Prototypes . | . . . Parts Lost 10 | . . 10 Power 1 | . . 1 Propulsion 2 | . . 2 Utility . | . . . Weapon 7 | . . 7 Highest Loss Streak 10 | . . 10 Average Slot Usage (%) 97 | . 97 98 Engine 14 | . 14 14 Treads 27 | . 27 28 Storage 20 | . 19 28 Processor 5 | . 6 . Energy Gun 25 | . 25 26 Ballistic Gun 2 | . 2 . Naked Turns . | . . . Heaviest Build 75 | 11 75 75 Greatest Support 40 | 20 40 40 Greatest Overweight (x) 3 | 1 1 3 Average Overweight (x) . | . . 1 Largest Inventory Capacity 20 | 6 20 20 Average Capacity 12 | 5 11 20 Most Carried 15 | 4 15 15 Average Carried 7 | 2 7 9 Final Capacity 20 | 6 20 20 Final Carried 15 | 4 15 5 Class Distribution -------------------- 61% | Mutant 38% | Hauler-Mutant Dominant Class ---------------- Mutant | -10/Materials Mutant | -10/Mines Resources | -11 -10 -10 ----------- Run | Scr Mat Min Matter Collected 342 | 249 90 3 Remotely . | . . . Salvage Created 389 | . 351 38 Parts 27 | . 27 . Haulers Intercepted 2 | . 2 . Recyclers Shooed 2 | . 2 . Parts Field Recycled . | . . . Retrieved Matter . | . . . Parts Self-Destructed . | . . . Prevented . | . . . Kills | -11 -10 -10 ------- Run | Scr Mat Min Combat Hostiles Destroyed 13 | . 8 5 Guns 13 | . 8 5 Classes Destroyed 6 | . 4 2 Worker 2 | . 2 . Hauler 2 | . 2 . Watcher 2 | . 2 . Swarmer 8 | . 8 . Demolisher 1 | . . 1 Assembled 4 | . . 4 Best Kill Streak 5 | . 5 5 Combat Bots Only 5 | . 3 5 Max Kills in Single Turn 1 | . 1 1 Gunslinging . | . . . Exploded . | . . . Melee . | . . . Uniques/NPCs Destroyed . | . . . Combat | -11 -10 -10 -------- Run | Scr Mat Min Damage Taken 1382 | . 373 1009 Core 259 | . 84 175 Absorbed by Shields . | . . . Core Remaining (%) 100 | 100 . . Volleys Fired 42 | . 26 16 Largest 2 | . 2 2 Hottest 112 | . 90 112 Shots Fired 84 | . 52 32 Gun 84 | . 52 32 Cannon . | . . . Launcher . | . . . Special . | . . . Kinetic 5 | . 5 . Thermal 28 | . 5 23 Explosive . | . . . Electromagnetic 51 | . 42 9 Robot Hit Streak 8 | . 5 8 Robot Miss Streak 4 | . 4 4 Penetration Max . | . . . Secondary Targets 5 | . 4 1 Max Gunslinging Chain 1 | . 1 1 Shots Hit Robots 50 | . 28 22 Core Hits 25 | . 15 10 Critical Hits . | . . . Critical Kills . | . . . Critical Parts Destroyed . | . . . Melee Attacks . | . . . Impact . | . . . Slashing . | . . . Piercing . | . . . Sneak Attacks . | . . . Combat Hostiles . | . . . Follow-up Attacks . | . . . Damage Inflicted 1140 | . 770 370 Guns 813 | . 520 293 Cannons . | . . . Explosions 327 | . 250 77 Melee . | . . . Ramming . | . . . Kinetic 13 | . 13 . Thermal 547 | . 295 252 Explosive . | . . . Electromagnetic 580 | . 462 118 Impact . | . . . Slashing . | . . . Piercing . | . . . Highest Corruption . | . . . Average Corruption . | . . . Corruption Purged . | . . . Overload Shots . | . . . Overflow Damage 5 | . 2 3 Projectiles . | . . . Explosions 5 | . 2 3 Melee . | . . . Knockbacks . | . . . Impact . | . . . Kinetic . | . . . Secondary . | . . . Self-Inflicted Damage 29 | . 29 . Shots 1 | . 1 . Rammed . | . . . Targets Rammed . | . . . Kicked . | . . . Crushed . | . . . Highest Temperature 347 | . 270 347 Average Temperature 105 | . 82 145 Received Heat Transfer 100 | . . 100 Effects 5 | . 3 2 Energy Bleed 1 | . . 1 Interference 3 | . 3 . Damage (minor) 1 | . . 1 Siege Activations . | . . . Robots Corrupted 1 | . 1 . Combat Hostiles . | . . . Parts Fried 1 | . . 1 Impact Corruptions . | . . . Robots Melted . | . . . Combat Hostiles . | . . . Parts Melted . | . . . Heat Transferred 1033 | . 500 533 Parts Sabotaged . | . . . Parts Stolen . | . . . Parts Stripped . | . . . Power Chain Reactions 5 | . 4 1 Missiles Intercepted . | . . . Alert | -11 -10 -10 ------- Run | Scr Mat Min Peak Influence 175 | . 175 28 Initial 28 | . . 28 Average 93 | . 120 7 Maximum Alert Level . | . . . Low Security (%) 100 | 100 100 100 Level 1 . | . . . Level 2 . | . . . Level 3 . | . . . Level 4 . | . . . Level 5 . | . . . High Security . | . . . Max Security . | . . . Squads Dispatched . | . . . Investigation . | . . . Extermination . | . . . Reinforcement . | . . . Assault . | . . . Garrison . | . . . Intercept . | . . . Construction Impeded . | . . . Haulers Reinforced . | . . . Stealth | -11 -10 -10 --------- Run | Scr Mat Min Distress Signals . | . . . Communications Jammed . | . . . Distress Signals . | . . . Times Spotted 28 | . 13 15 Peak Tracking Total 14 | . 4 14 Tactical Retreats 1 | . . 1 Traps | -11 -10 -10 ------- Run | Scr Mat Min Traps Triggered . | . . . Indirectly . | . . . Trap Hack Attempts . | . . . Triggered . | . . . Disarmed . | . . . Reprogrammed . | . . . Reused . | . . . Traps Extracted . | . . . Installed . | . . . Triggered . | . . . Machines | -11 -10 -10 ---------- Run | Scr Mat Min Machines Disabled 1 | . 1 . Max in Single Turn 1 | . 1 . Machines Sabotaged . | . . . Garrisons Compromised . | . . . Overloaded Fab Kills . | . . . Fab Network Shutdowns . | . . . Hacking | -11 -10 -10 --------- Run | Scr Mat Min Machines Accessed 1 | . 1 . Terminals 1 | . 1 . Fabricators . | . . . Repair Stations . | . . . Recycling Units . | . . . Scanalyzers . | . . . Garrison Access . | . . . Total Hacks 3 | . 3 . Successful 1 | . 1 . Failed 2 | . 2 . Catastrophic . | . . . Database Lockouts . | . . . Manual . | . . . Terminals 3 | . 3 . Fabricators . | . . . Repair Stations . | . . . Recycling Units . | . . . Scanalyzers . | . . . Garrison Access . | . . . Terminal Hacks 1 | . 1 . Branch Access Points 1 | . 1 . Fabricator Hacks . | . . . Repair Station Hacks . | . . . Recycling Unit Hacks . | . . . Scanalyzer . | . . . Garrison Access Hacks . | . . . Unauthorized Hacks . | . . . Terminals . | . . . Fabricators . | . . . Repair Stations . | . . . Recycling Units . | . . . Scanalyzers . | . . . Garrison Access . | . . . Data Cores Recovered . | . . . Used . | . . . Hacking Detections 1 | . 1 . Full Trace Events . | . . . Feedback Events . | . . . Feedback Blocked . | . . . Robot Schematics Acquired . | . . . Robots Built . | . . . Matter . | . . . Time . | . . . Total Robot Build Rating . | . . . Part Schematics Acquired . | . . . Parts Built . | . . . Matter . | . . . Time . | . . . Total Part Build Rating . | . . . Parts Repaired . | . . . Time . | . . . Parts Recycled . | . . . Recycled Matter . | . . . Retrieved Matter . | . . . Retrieved Components . | . . . Parts Scanalyzed . | . . . Part Schematics Acquired . | . . . Parts Damaged . | . . . Bothacking | -11 -10 -10 ------------ Run | Scr Mat Min Used RIF Installer . | . . . Robots Hacked . | . . . Non-combat . | . . . Combat . | . . . Robot Hacks Applied . | . . . Relay Couplers Released . | . . . Robots Rewired . | . . . Allies Hacked . | . . . Hacks Repelled . | . . . Allies | -11 -10 -10 -------- Run | Scr Mat Min Total Allies . | . . . Largest Group . | . . . Highest-Rated Group . | . . . Highest-Rated Ally . | . . . Total Orders . | . . . Ally Attacks . | . . . Total Damage . | . . . Kills . | . . . Allies Corrupted . | . . . Allies Melted . | . . . Intel | -11 -10 -10 ------- Run | Scr Mat Min Robot Analysis Total . | . . . Derelict Logs Recovered . | . . . Drone Launches . | . . . Drone Recoveries . | . . . Exploration | -11 -10 -10 ------------- Run | Scr Mat Min Turns Passed 569 | 60 434 75 Spaces Moved 263 | 51 202 10 Core 1 | 1 . . Treads 199 | 1 188 10 Legs . | . . . Wheels 63 | 49 14 . Hover . | . . . Flight . | . . . Fastest Speed 50 | 50 90 180 Average Speed 149 | 87 163 184 Slowest Speed 220 | 160 180 220 Overloaded Moves . | . . . Propulsion Burnouts . | . . . Robots Hopped . | . . . Cave-ins Triggered . | . . . Exploration Rate (%) 14 | 3 33 8 Regions Visited 2 Branch Regions 1 Pre-discovered Areas . | . . . Known Exits Taken 1 | . 1 . Unknown Exits Taken 1 | 1 . . Scrap Searched . | . . . Spaces Dug . | . . . Terrain Destroyed 15 | . 10 5 Melee . | . . . Projectile . | . . . AOE 15 | . 10 5 Terrain Rammed . | . . . Walls Destroyed . | . . . Machines Disabled . | . . . Actions | -11 -10 -10 --------- Run | Scr Mat Min Total 356 | 64 255 37 Wait 1 | . . 1 Move 261 | 50 201 10 Hop . | . . . Pick Up 20 | 7 13 . Fast Attach 7 | 3 4 . Attach 13 | 3 . 10 Detach . | . . . Swap 5 | 1 4 . Drop 7 | . 7 . Fire 42 | . 26 16 Melee . | . . . Ram . | . . . Kick . | . . . Crush . | . . . Escape Stasis . | . . . Rewire . | . . . Trap . | . . . Miscellaneous . | . . . Route ------- -11/Scrapyard -10/Materials -10/Mines (discovered 1 exit: [*Mat]) History --------- Turn | Location | Event 15 | -11/Scrapyard | Discovered new exit (range 15) 61 | -11/Scrapyard | Entered Materials 104 | -10/Materials | Identified exit to Mines 304 | -10/Materials | Build established: Mutant 495 | -10/Materials | Entered Mines 496 | -10/Mines | Assembled infested the area 501 | -10/Mines | Discovered new exit (range 12) 519 | -10/Mines | Core integrity fell below 50% 540 | -10/Mines | Core integrity fell below 20% 570 | -10/Mines | Destroyed by as-87638 with Assembled Rifle Last Messages --------------- 00555_ K-01 Serf collects debris. 00555_ Beam Rifle destroyed. 00557_ U-05 Engineer builds a Wall. 00558_ as-55213 destroyed. 00559_ Overheating: Energy bleed (-16). 00559_ The unstable cave ceiling collapses. 00559_ K-01 Serf collects debris. 00559_ U-05 Engineer builds a Wall. 00560_ The unstable cave ceiling collapses. 00561_ K-01 Serf collects debris. 00563_ The unstable cave ceiling collapses. 00563_ U-05 Engineer lays Concrete. 00563_ U-05 Engineer builds a Wall. 00564_ U-05 Engineer lays Concrete. 00564_ K-01 Serf collects debris. 00565_ U-05 Engineer lays Concrete. 00566_ The unstable cave ceiling collapses. 00566_ U-05 Engineer builds a Wall. 00569_ Overheating: Hcp. Storage Unit damaged (-275). 00569_ U-05 Engineer builds a Wall. Map ----- +----------------------------------------------------+ | ????????????????????????????????????????????????? | | ????????????????????????????????????????????????? | | ????????????????????????????????????????????????? | | ????????????????????????????????????????????????? | | ????????????????????????????????????????????????? | | ????????????????????????????????????????????????? | | ????????????????????????????????????????????????? | | ????????????????????????????????????????????????? | | ????????????????????????????????????????????????? | | ????????????????????????????????????????????????? | | ????????????????????????????????????????????????? | | ????????????????????????????????????????????????? | | ????????????????????????????????????????????????? | | ????????????????????????????????????????????????? | | ????????????????????????????????????????????????? | | ????????????????????????????????????????????????? | | ????????????????????????????????????????????????? | | ????????????????????????????????????????????????? | | ??????????????????????????????????? ##??????????? | | ???????????????????????#######??? #??????????? | | ????????????????????#### ?? ??????????? | | ???????????????????## a ### ?????????? | | ????????????######## # %# ???????????? | | ????????????# # # % ??????????????? | | ????????????# #%%# # #??????????????? | | ????????????# """ = u@# #?????????????????? | | ????????????# """ ##u# ##????????????????? | | ????????????# """ ##%## # #????????????????? | | ????????????######## # # # ##????????????????? | | ???????????????????### # # ###?????????????????? | | ?????????????????????# # # ##???????????????????? | | ?????????????????????###%###????????????????????? | | ??????????????????????T ????????????????????? | | ??????????????????????# ???????????????????? | | ??????????????????????# ???????????????????? | | ??????????????????????# ""??????????????????? | | ??????????????????????# ""??????????????????? | | ??????????????????????# < ""??????????????????? | | ??????????????????????? ???????????????????? | | ??????????????????????? ? ???????????????????? | | ???????????????????????###??????????????????????? | | ????????????????????????????????????????????????? | | ????????????????????????????????????????????????? | | | | | | | | | | | | | | | +----------------------------------------------------+ Best States ------------- Heat Dissipation 25 Energy Generation 10 Energy Capacity 250 Matter Stores 284 Matter Capacity 300 Sight Range 16 Terrain Scan Density 10 Evasion (%) 44 Targeting Accuracy 6 Recoil Reduction 2 Item Schematics ----------------- None Robot Schematics ------------------ None Fabricated ------------ Nothing Alien Tech Used ----------------- None Achievements -------------- None Challenges ------------ None Game ------ Seed CoolingInsulationShotgun Manual? 0 Play Time 00:07:56 Cumulative 402.8 hours Start 2020.12.02 @ 17:13:57 End 2020.12.02 @ 17:20:25 Sessions 1 Manual Loads 0 Difficulty Rogue Special Mode None Game No. 299 Rogue 299 Adventurer 0 Explorer 0 Win Type - Total 12 Types 11/0/0/1/0/0/0/0/0 Lore% 79 Gallery% 78 Achievement% 64 Wizard Run 0 Options --------- ASCII 0 Keyboard 0 Movement Vi Keybinds 0 Fullscreen 0 Font 16/SmallcapsGlow Map View 76x50 Tactical HUD 1 Map Filters NONE Filters NONE Steam 1 RUN: 50b215ab-d62d-40aa-a16b-7c69c33c584d